[Event "Titled Tuesday Blitz November 01 Late 2022"]
[White "Mesa Cruz, Juan Carlos"]
[Black "Qashashvili, Alexandre"]
[WhiteFideId "6423400"]
[BlackFideId "13600842"]
[WhiteElo "2059"]
[BlackElo "2405"]
[Result "1-0"]
[Round "11"]
[TimeControl "180+1"]
[Date "2022.11.02"]
[WhiteClock "0:00:34"]
[BlackClock "0:00:03"]

1. e4 {[%clk 0:02:57]}  c6 {[%clk 0:02:23]} 2. Nc3 {[%clk 0:02:47]}  d5 {[%clk 0:02:23]} 3. Nf3 {[%clk 0:02:45]}  dxe4 {[%clk 0:02:20]} 4. Nxe4 {[%clk 0:02:44]}  Nf6 {[%clk 0:02:21]} 5. Qe2 {[%clk 0:02:44]}  Nxe4 {[%clk 0:02:21]} 6. Qxe4 {[%clk 0:02:45]}  Qd5 {[%clk 0:02:21]} 7. Qh4 {[%clk 0:02:42]}  Bf5 {[%clk 0:02:20]} 8. Bc4 {[%clk 0:02:40]}  Qe4+ {[%clk 0:02:18]} 9. Qxe4 {[%clk 0:02:40]}  Bxe4 {[%clk 0:02:19]} 10. Bxf7+ {[%clk 0:02:40]}  Kxf7 {[%clk 0:02:18]} 11. Ng5+ {[%clk 0:02:40]}  Kg6 {[%clk 0:02:17]} 12. Nxe4 {[%clk 0:02:40]}  e5 {[%clk 0:02:17]} 13. d3 {[%clk 0:02:39]}  Nd7 {[%clk 0:02:17]} 14. Be3 {[%clk 0:02:39]}  Be7 {[%clk 0:02:16]} 15. Ke2 {[%clk 0:02:37]}  Rhf8 {[%clk 0:02:17]} 16. Rhf1 {[%clk 0:02:36]}  Rae8 {[%clk 0:02:15]} 17. a4 {[%clk 0:02:32]}  a6 {[%clk 0:02:13]} 18. a5 {[%clk 0:02:31]}  Nf6 {[%clk 0:02:12]} 19. Nxf6 {[%clk 0:02:29]}  gxf6 {[%clk 0:02:10]} 20. Rae1 {[%clk 0:02:20]}  Bb4 {[%clk 0:02:10]} 21. Bd2 {[%clk 0:02:20]}  Bxd2 {[%clk 0:02:07]} 22. Kxd2 {[%clk 0:02:21]}  f5 {[%clk 0:02:07]} 23. Re3 {[%clk 0:02:13]}  Kf6 {[%clk 0:02:06]} 24. Rfe1 {[%clk 0:02:13]}  Re7 {[%clk 0:02:06]} 25. f4 {[%clk 0:02:11]}  Rg7 {[%clk 0:01:12]} 26. fxe5+ {[%clk 0:02:05]}  Ke6 {[%clk 0:01:11]} 27. R1e2 {[%clk 0:02:02]}  h5 {[%clk 0:01:08]} 28. Rh3 {[%clk 0:01:55]}  Rg5 {[%clk 0:01:05]} 29. d4 {[%clk 0:01:47]}  Rd8 {[%clk 0:00:59]} 30. c3 {[%clk 0:01:39]}  c5 {[%clk 0:00:55]} 31. Rh4 {[%clk 0:01:37]}  Rdg8 {[%clk 0:00:40]} 32. g3 {[%clk 0:01:36]}  cxd4 {[%clk 0:00:36]} 33. cxd4 {[%clk 0:01:35]}  Kd5 {[%clk 0:00:33]} 34. Kd3 {[%clk 0:01:08]}  Rg4 {[%clk 0:00:29]} 35. Rxg4 {[%clk 0:01:07]}  Rxg4 {[%clk 0:00:25]} 36. e6 {[%clk 0:01:08]}  Rxd4+ {[%clk 0:00:22]} 37. Kc3 {[%clk 0:00:59]}  Rc4+ {[%clk 0:00:19]} 38. Kb3 {[%clk 0:00:58]}  Rc8 {[%clk 0:00:17]} 39. e7 {[%clk 0:00:51]}  Re8 {[%clk 0:00:15]} 40. Kc3 {[%clk 0:00:47]}  Kd6 {[%clk 0:00:12]} 41. Kd4 {[%clk 0:00:48]}  Rxe7 {[%clk 0:00:06]} 42. Rxe7 {[%clk 0:00:47]}  Kxe7 {[%clk 0:00:07]} 43. Ke5 {[%clk 0:00:48]}  h4 {[%clk 0:00:04]} 44. Kxf5 {[%clk 0:00:46]}  Kf7 {[%clk 0:00:04]} 45. g4 {[%clk 0:00:45]}  h3 {[%clk 0:00:03]} 46. g5 {[%clk 0:00:45]}  Kg7 {[%clk 0:00:03]} 47. g6 {[%clk 0:00:45]}  Kg8 {[%clk 0:00:03]} 48. Kf6 {[%clk 0:00:45]}  Kf8 {[%clk 0:00:03]} 49. b4 {[%clk 0:00:44]}  Kg8 {[%clk 0:00:04]} 50. g7 {[%clk 0:00:44]}  b6 {[%clk 0:00:01]} 51. axb6 {[%clk 0:00:44]}  Kh7 {[%clk 0:00:02]} 52. b7 {[%clk 0:00:43]}  Kh6 {[%clk 0:00:02]} 53. b8=Q {[%clk 0:00:40]}  a5 {[%clk 0:00:03]} 54. g8=Q {[%clk 0:00:40]}  axb4 {[%clk 0:00:03]} 55. Qbg3 {[%clk 0:00:39]}  b3 {[%clk 0:00:01]} 56. Q8g4 {[%clk 0:00:37]}  b2 {[%clk 0:00:02]} 57. Qg7+ {[%clk 0:00:36]}  Kh5 {[%clk 0:00:02]} 58. Qg8 {[%clk 0:00:35]}  b1=Q {[%clk 0:00:03]} 59. Qxh3# {[%clk 0:00:34]} 1-0


[Site "https://www.chess.com"]

[Event "Titled Tuesday Blitz November 01 Late 2022"]
[White "Munoz Sanchez, Miguel"]
[Black "Floresvillar Gonzalez, Luis Migu"]
[WhiteFideId "3600734"]
[BlackFideId "5100542"]
[WhiteElo "2166"]
[BlackElo "2040"]
[Result "0-1"]
[Round "11"]
[TimeControl "180+1"]
[Date "2022.11.02"]
[WhiteClock "0:00:55"]
[BlackClock "0:00:51"]

1. e4 {[%clk 0:03:00]}  e6 {[%clk 0:02:58]} 2. d4 {[%clk 0:02:59]}  d5 {[%clk 0:02:58]} 3. Nd2 {[%clk 0:02:58]}  dxe4 {[%clk 0:02:58]} 4. Nxe4 {[%clk 0:02:58]}  Nd7 {[%clk 0:02:59]} 5. c3 {[%clk 0:02:56]}  Ngf6 {[%clk 0:02:59]} 6. Bd3 {[%clk 0:02:56]}  Nxe4 {[%clk 0:02:58]} 7. Bxe4 {[%clk 0:02:57]}  c5 {[%clk 0:02:56]} 8. Nf3 {[%clk 0:02:55]}  cxd4 {[%clk 0:02:56]} 9. Nxd4 {[%clk 0:02:52]}  Be7 {[%clk 0:02:55]} 10. O-O {[%clk 0:02:52]}  O-O {[%clk 0:02:51]} 11. Bc2 {[%clk 0:02:49]}  Nf6 {[%clk 0:02:48]} 12. Re1 {[%clk 0:02:49]}  Qc7 {[%clk 0:02:44]} 13. Qf3 {[%clk 0:02:48]}  Bd7 {[%clk 0:02:39]} 14. Bf4 {[%clk 0:02:48]}  Bd6 {[%clk 0:02:37]} 15. Bxd6 {[%clk 0:02:40]}  Qxd6 {[%clk 0:02:37]} 16. Rad1 {[%clk 0:02:41]}  Bc6 {[%clk 0:02:34]} 17. Nxc6 {[%clk 0:02:40]}  Qxc6 {[%clk 0:02:33]} 18. Qxc6 {[%clk 0:02:40]}  bxc6 {[%clk 0:02:32]} 19. Rd6 {[%clk 0:02:41]}  Rfc8 {[%clk 0:02:27]} 20. c4 {[%clk 0:02:38]}  c5 {[%clk 0:02:23]} 21. Red1 {[%clk 0:02:37]}  g6 {[%clk 0:02:22]} 22. b3 {[%clk 0:02:36]}  a5 {[%clk 0:02:21]} 23. g3 {[%clk 0:02:27]}  Kg7 {[%clk 0:02:20]} 24. Kg2 {[%clk 0:02:27]}  h5 {[%clk 0:02:20]} 25. h4 {[%clk 0:02:26]}  Ng4 {[%clk 0:02:17]} 26. Re1 {[%clk 0:02:20]}  Rc7 {[%clk 0:02:14]} 27. f3 {[%clk 0:02:20]}  Nf6 {[%clk 0:02:12]} 28. Kh3 {[%clk 0:02:18]}  Raa7 {[%clk 0:02:05]} 29. g4 {[%clk 0:02:18]}  hxg4+ {[%clk 0:02:04]} 30. fxg4 {[%clk 0:02:19]}  Rd7 {[%clk 0:02:04]} 31. Red1 {[%clk 0:02:17]}  Rxd6 {[%clk 0:02:03]} 32. Rxd6 {[%clk 0:02:18]}  Rd7 {[%clk 0:02:03]} 33. Rxd7 {[%clk 0:02:06]}  Nxd7 {[%clk 0:02:02]} 34. Be4 {[%clk 0:02:04]}  f5 {[%clk 0:02:00]} 35. Bb7 {[%clk 0:02:01]}  fxg4+ {[%clk 0:01:54]} 36. Kxg4 {[%clk 0:02:00]}  Kf6 {[%clk 0:01:54]} 37. Kf4 {[%clk 0:01:58]}  Ne5 {[%clk 0:01:52]} 38. Be4 {[%clk 0:01:55]}  Nf7 {[%clk 0:01:47]} 39. a3 {[%clk 0:01:52]}  Nd6 {[%clk 0:01:41]} 40. Bd3 {[%clk 0:01:50]}  e5+ {[%clk 0:01:38]} 41. Ke3 {[%clk 0:01:48]}  Nf5+ {[%clk 0:01:36]} 42. Kd2 {[%clk 0:01:27]}  Nxh4 {[%clk 0:01:34]} 43. Kc3 {[%clk 0:01:28]}  Nf3 {[%clk 0:01:32]} 44. b4 {[%clk 0:01:27]}  cxb4+ {[%clk 0:01:31]} 45. axb4 {[%clk 0:01:28]}  axb4+ {[%clk 0:01:31]} 46. Kxb4 {[%clk 0:01:28]}  Nd4 {[%clk 0:01:30]} 47. c5 {[%clk 0:01:26]}  g5 {[%clk 0:01:30]} 48. Kc4 {[%clk 0:01:24]}  g4 {[%clk 0:01:29]} 49. Kd5 {[%clk 0:01:24]}  g3 {[%clk 0:01:27]} 50. Be4 {[%clk 0:01:25]}  Nb5 {[%clk 0:01:10]} 51. c6 {[%clk 0:01:23]}  Nc7+ {[%clk 0:01:04]} 52. Kd6 {[%clk 0:01:23]}  Nb5+ {[%clk 0:01:03]} 53. Kd5 {[%clk 0:01:13]}  Nc3+ {[%clk 0:00:54]} 54. Kd6 {[%clk 0:00:54]}  Nxe4+ {[%clk 0:00:53]} 55. Kd7 {[%clk 0:00:55]}  Nc5+ {[%clk 0:00:51]} 0-1


[Site "https://www.chess.com"]

[Event "Titled Tuesday Blitz November 01 Late 2022"]
[White "Pakleza, Zbigniew"]
[Black "Gubajdullin, Alexei"]
[WhiteFideId "1119290"]
[BlackFideId "4141202"]
[WhiteElo "2411"]
[BlackElo "2200"]
[Result "0-1"]
[Round "11"]
[TimeControl "180+1"]
[Date "2022.11.01"]
[WhiteClock "0:00:01"]
[BlackClock "0:00:54"]

1. d4 {[%clk 0:03:00]}  Nf6 {[%clk 0:02:59]} 2. Nf3 {[%clk 0:03:00]}  g6 {[%clk 0:02:59]} 3. Bf4 {[%clk 0:03:00]}  Bg7 {[%clk 0:02:58]} 4. e3 {[%clk 0:03:00]}  d6 {[%clk 0:02:55]} 5. h3 {[%clk 0:03:00]}  O-O {[%clk 0:02:54]} 6. Be2 {[%clk 0:03:00]}  Nc6 {[%clk 0:02:54]} 7. c4 {[%clk 0:02:59]}  Nd7 {[%clk 0:02:53]} 8. Nc3 {[%clk 0:02:57]}  e5 {[%clk 0:02:52]} 9. Bh2 {[%clk 0:02:58]}  f5 {[%clk 0:02:48]} 10. O-O {[%clk 0:02:57]}  Kh8 {[%clk 0:02:45]} 11. Rc1 {[%clk 0:02:36]}  g5 {[%clk 0:02:42]} 12. dxe5 {[%clk 0:02:36]}  dxe5 {[%clk 0:02:39]} 13. Qd2 {[%clk 0:02:18]}  g4 {[%clk 0:02:33]} 14. hxg4 {[%clk 0:02:14]}  fxg4 {[%clk 0:02:32]} 15. Ne1 {[%clk 0:02:14]}  Qg5 {[%clk 0:02:24]} 16. Nd3 {[%clk 0:01:37]}  Nf6 {[%clk 0:02:21]} 17. Rcd1 {[%clk 0:01:32]}  h5 {[%clk 0:02:17]} 18. Nd5 {[%clk 0:01:22]}  Ne4 {[%clk 0:02:09]} 19. Qc2 {[%clk 0:01:12]}  h4 {[%clk 0:02:08]} 20. Nxe5 {[%clk 0:00:46]}  Nxe5 {[%clk 0:02:05]} 21. Qxe4 {[%clk 0:00:38]}  Bf5 {[%clk 0:02:05]} 22. Qf4 {[%clk 0:00:33]}  Qh5 {[%clk 0:02:04]} 23. e4 {[%clk 0:00:23]}  Bh7 {[%clk 0:01:46]} 24. Qe3 {[%clk 0:00:23]}  c6 {[%clk 0:01:35]} 25. Nc7 {[%clk 0:00:23]}  Nf3+ {[%clk 0:01:22]} 26. Bxf3 {[%clk 0:00:23]}  gxf3 {[%clk 0:01:16]} 27. gxf3 {[%clk 0:00:04]}  Rxf3 {[%clk 0:01:13]} 28. Qd2 {[%clk 0:00:02]}  Qg4+ {[%clk 0:01:02]} 29. Kh1 {[%clk 0:00:02]}  Bxe4 {[%clk 0:00:59]} 30. Rde1 {[%clk 0:00:01]}  Rxf2+ {[%clk 0:00:54]} 0-1


[Site "https://www.chess.com"]

[Event "Titled Tuesday Blitz November 01 Late 2022"]
[White "Petrovic, Aleksa"]
[Black "Rios Escobar, Adan"]
[WhiteFideId "967629"]
[BlackFideId "3403645"]
[WhiteElo "2242"]
[BlackElo "2347"]
[Result "1-0"]
[Round "11"]
[TimeControl "180+1"]
[Date "2022.11.02"]
[WhiteClock "0:00:13"]
[BlackClock "0:00:05"]

1. e4 {[%clk 0:03:00]}  c5 {[%clk 0:02:57]} 2. Nf3 {[%clk 0:02:57]}  d6 {[%clk 0:02:57]} 3. d4 {[%clk 0:02:57]}  cxd4 {[%clk 0:02:58]} 4. Nxd4 {[%clk 0:02:57]}  Nf6 {[%clk 0:02:59]} 5. Nc3 {[%clk 0:02:57]}  a6 {[%clk 0:02:59]} 6. Bg5 {[%clk 0:02:57]}  Nbd7 {[%clk 0:02:58]} 7. Qe2 {[%clk 0:02:57]}  g6 {[%clk 0:02:58]} 8. f4 {[%clk 0:02:56]}  Bg7 {[%clk 0:02:58]} 9. e5 {[%clk 0:02:56]}  O-O {[%clk 0:02:55]} 10. O-O-O {[%clk 0:02:49]}  dxe5 {[%clk 0:02:54]} 11. fxe5 {[%clk 0:02:49]}  Qa5 {[%clk 0:02:55]} 12. Re1 {[%clk 0:02:33]}  e6 {[%clk 0:02:34]} 13. Nb3 {[%clk 0:02:31]}  Qxe5 {[%clk 0:02:09]} 14. Qxe5 {[%clk 0:02:30]}  Nxe5 {[%clk 0:02:10]} 15. Rxe5 {[%clk 0:02:30]}  Nd5 {[%clk 0:02:01]} 16. Re1 {[%clk 0:02:22]}  Nxc3 {[%clk 0:02:01]} 17. bxc3 {[%clk 0:02:22]}  Bxc3 {[%clk 0:02:01]} 18. Re3 {[%clk 0:02:21]}  Bg7 {[%clk 0:02:01]} 19. Bd3 {[%clk 0:02:21]}  Bd7 {[%clk 0:01:57]} 20. Kb1 {[%clk 0:02:19]}  Bc6 {[%clk 0:01:51]} 21. Be4 {[%clk 0:02:16]}  Rac8 {[%clk 0:01:52]} 22. Rd1 {[%clk 0:02:15]}  h6 {[%clk 0:01:41]} 23. Be7 {[%clk 0:02:13]}  Rfe8 {[%clk 0:01:41]} 24. Ba3 {[%clk 0:02:13]}  b6 {[%clk 0:01:18]} 25. Bb2 {[%clk 0:02:09]}  e5 {[%clk 0:01:09]} 26. Bxc6 {[%clk 0:02:06]}  Rxc6 {[%clk 0:01:09]} 27. Rd7 {[%clk 0:02:07]}  a5 {[%clk 0:01:02]} 28. Nd4 {[%clk 0:02:03]}  Rc5 {[%clk 0:00:58]} 29. Nf3 {[%clk 0:02:01]}  e4 {[%clk 0:00:57]} 30. Bxg7 {[%clk 0:01:58]}  Kxg7 {[%clk 0:00:55]} 31. Nd4 {[%clk 0:01:48]}  Rc4 {[%clk 0:00:50]} 32. Nb5 {[%clk 0:01:44]}  Rb4+ {[%clk 0:00:50]} 33. Rb3 {[%clk 0:01:42]}  e3 {[%clk 0:00:50]} 34. Rd1 {[%clk 0:01:35]}  e2 {[%clk 0:00:50]} 35. Re1 {[%clk 0:01:35]}  Rf4 {[%clk 0:00:50]} 36. Rf3 {[%clk 0:01:30]}  Rb4+ {[%clk 0:00:50]} 37. Rb3 {[%clk 0:01:29]}  Rf4 {[%clk 0:00:50]} 38. Kc1 {[%clk 0:01:27]}  Rf2 {[%clk 0:00:28]} 39. Rg3 {[%clk 0:01:13]}  Rf1 {[%clk 0:00:15]} 40. Kd2 {[%clk 0:01:11]}  Rf2 {[%clk 0:00:10]} 41. Nd4 {[%clk 0:01:10]}  h5 {[%clk 0:00:05]} 42. Re3 {[%clk 0:01:07]}  Rd8 {[%clk 0:00:05]} 43. c3 {[%clk 0:01:06]}  Rxg2 {[%clk 0:00:05]} 44. R1xe2 {[%clk 0:01:06]}  Rg1 {[%clk 0:00:05]} 45. Re7 {[%clk 0:01:05]}  Ra1 {[%clk 0:00:03]} 46. Kd3 {[%clk 0:01:02]}  Kf8 {[%clk 0:00:02]} 47. Rb7 {[%clk 0:01:01]}  Rd1+ {[%clk 0:00:02]} 48. Kc2 {[%clk 0:01:01]}  Rf1 {[%clk 0:00:03]} 49. Ree7 {[%clk 0:00:59]}  Rf2+ {[%clk 0:00:02]} 50. Kb3 {[%clk 0:00:58]}  Rf3 {[%clk 0:00:03]} 51. Kc4 {[%clk 0:00:40]}  Rc8+ {[%clk 0:00:02]} 52. Rec7 {[%clk 0:00:40]}  Rxc7+ {[%clk 0:00:02]} 53. Rxc7 {[%clk 0:00:41]}  Rf2 {[%clk 0:00:02]} 54. a4 {[%clk 0:00:38]}  Rxh2 {[%clk 0:00:03]} 55. Rc6 {[%clk 0:00:35]}  Ra2 {[%clk 0:00:03]} 56. Kb3 {[%clk 0:00:34]}  Ra1 {[%clk 0:00:02]} 57. Nc2 {[%clk 0:00:23]}  Rb1+ {[%clk 0:00:02]} 58. Ka2 {[%clk 0:00:23]}  Rc1 {[%clk 0:00:03]} 59. Kb2 {[%clk 0:00:23]}  Rg1 {[%clk 0:00:03]} 60. Rxb6 {[%clk 0:00:22]}  h4 {[%clk 0:00:04]} 61. Rf6 {[%clk 0:00:20]}  h3 {[%clk 0:00:04]} 62. Rf2 {[%clk 0:00:20]}  Rg2 {[%clk 0:00:04]} 63. Rf1 {[%clk 0:00:20]}  h2 {[%clk 0:00:05]} 64. Rh1 {[%clk 0:00:20]}  g5 {[%clk 0:00:05]} 65. Kb3 {[%clk 0:00:21]}  g4 {[%clk 0:00:05]} 66. Ne3 {[%clk 0:00:21]}  Re2 {[%clk 0:00:02]} 67. Nxg4 {[%clk 0:00:21]}  f5 {[%clk 0:00:02]} 68. Nxh2 {[%clk 0:00:21]}  f4 {[%clk 0:00:02]} 69. Nf3 {[%clk 0:00:20]}  Rf2 {[%clk 0:00:02]} 70. Ne5 {[%clk 0:00:20]}  Re2 {[%clk 0:00:02]} 71. Ng6+ {[%clk 0:00:19]}  Ke8 {[%clk 0:00:02]} 72. Nxf4 {[%clk 0:00:20]}  Rf2 {[%clk 0:00:02]} 73. Nd3 {[%clk 0:00:19]}  Rd2 {[%clk 0:00:02]} 74. Kc4 {[%clk 0:00:18]}  Kd8 {[%clk 0:00:02]} 75. Rh8+ {[%clk 0:00:17]}  Kc7 {[%clk 0:00:02]} 76. Rh7+ {[%clk 0:00:18]}  Kc8 {[%clk 0:00:02]} 77. Rh6 {[%clk 0:00:19]}  Ra2 {[%clk 0:00:02]} 78. Kb3 {[%clk 0:00:17]}  Ra1 {[%clk 0:00:02]} 79. Ra6 {[%clk 0:00:16]}  Rb1+ {[%clk 0:00:02]} 80. Nb2 {[%clk 0:00:16]}  Kb7 {[%clk 0:00:02]} 81. Rxa5 {[%clk 0:00:17]}  Kb8 {[%clk 0:00:01]} 82. Rh5 {[%clk 0:00:17]}  Ka8 {[%clk 0:00:02]} 83. Kc2 {[%clk 0:00:16]}  Rg1 {[%clk 0:00:03]} 84. a5 {[%clk 0:00:15]}  Rg2+ {[%clk 0:00:04]} 85. Kb3 {[%clk 0:00:16]}  Rg6 {[%clk 0:00:05]} 86. Nc4 {[%clk 0:00:16]}  Ra6 {[%clk 0:00:05]} 87. Kb4 {[%clk 0:00:16]}  Rg6 {[%clk 0:00:05]} 88. Kb5 {[%clk 0:00:15]}  Rf6 {[%clk 0:00:04]} 89. Nb6+ {[%clk 0:00:14]}  Kb8 {[%clk 0:00:04]} 90. Nd7+ {[%clk 0:00:14]}  Ka8 {[%clk 0:00:02]} 91. Nxf6 {[%clk 0:00:13]}  Ka7 {[%clk 0:00:03]} 92. Rh7+ {[%clk 0:00:13]}  Ka8 {[%clk 0:00:04]} 93. Kb6 {[%clk 0:00:13]}  Kb8 {[%clk 0:00:05]} 94. Rh8# {[%clk 0:00:13]} 1-0


[Site "https://www.chess.com"]

[Event "Titled Tuesday Blitz November 01 Late 2022"]
[White "Plat, Vojtech"]
[Black "Melkumyan, Hrant"]
[WhiteFideId "325740"]
[BlackFideId "13302485"]
[WhiteElo "2514"]
[BlackElo "2604"]
[Result "1-0"]
[Round "11"]
[TimeControl "180+1"]
[Date "2022.11.01"]
[WhiteClock "0:00:58"]
[BlackClock "0:00:02"]

1. e4 {[%clk 0:03:00]}  c5 {[%clk 0:02:59]} 2. Nf3 {[%clk 0:03:00]}  Nc6 {[%clk 0:03:00]} 3. c3 {[%clk 0:03:00]}  Nf6 {[%clk 0:02:56]} 4. e5 {[%clk 0:03:00]}  Nd5 {[%clk 0:02:57]} 5. Bc4 {[%clk 0:03:01]}  Nb6 {[%clk 0:02:56]} 6. Bb3 {[%clk 0:03:01]}  c4 {[%clk 0:02:57]} 7. Bc2 {[%clk 0:03:02]}  d5 {[%clk 0:02:58]} 8. exd6 {[%clk 0:03:02]}  Qxd6 {[%clk 0:02:58]} 9. d4 {[%clk 0:03:02]}  Bg4 {[%clk 0:02:52]} 10. O-O {[%clk 0:03:00]}  e6 {[%clk 0:02:52]} 11. Nbd2 {[%clk 0:02:59]}  Be7 {[%clk 0:02:50]} 12. Re1 {[%clk 0:02:59]}  Bh5 {[%clk 0:02:42]} 13. Qe2 {[%clk 0:02:58]}  Bg6 {[%clk 0:02:42]} 14. Bxg6 {[%clk 0:02:54]}  hxg6 {[%clk 0:02:42]} 15. Nxc4 {[%clk 0:02:54]}  Nxc4 {[%clk 0:02:41]} 16. Qxc4 {[%clk 0:02:54]}  O-O-O {[%clk 0:02:42]} 17. Ne5 {[%clk 0:02:48]}  Rh5 {[%clk 0:01:55]} 18. Bf4 {[%clk 0:02:43]}  Bf6 {[%clk 0:01:40]} 19. Nxg6 {[%clk 0:02:11]}  Qd7 {[%clk 0:01:35]} 20. Ne5 {[%clk 0:02:08]}  Bxe5 {[%clk 0:01:36]} 21. Bxe5 {[%clk 0:02:07]}  f6 {[%clk 0:01:23]} 22. Bg3 {[%clk 0:02:07]}  Rd5 {[%clk 0:01:24]} 23. b4 {[%clk 0:02:04]}  b5 {[%clk 0:01:23]} 24. Qe2 {[%clk 0:02:04]}  Re8 {[%clk 0:01:21]} 25. a4 {[%clk 0:02:04]}  a6 {[%clk 0:01:00]} 26. axb5 {[%clk 0:02:04]}  axb5 {[%clk 0:01:01]} 27. Ra8+ {[%clk 0:01:55]}  Kb7 {[%clk 0:01:01]} 28. Rxe8 {[%clk 0:01:55]}  Qxe8 {[%clk 0:01:02]} 29. Qxe6 {[%clk 0:01:54]}  Qxe6 {[%clk 0:01:03]} 30. Rxe6 {[%clk 0:01:53]}  Rd7 {[%clk 0:01:04]} 31. h4 {[%clk 0:01:49]}  Ne7 {[%clk 0:01:04]} 32. Bf4 {[%clk 0:01:43]}  Nd5 {[%clk 0:01:03]} 33. Bd2 {[%clk 0:01:43]}  Rd8 {[%clk 0:01:00]} 34. h5 {[%clk 0:01:37]}  Ra8 {[%clk 0:01:00]} 35. h6 {[%clk 0:01:31]}  gxh6 {[%clk 0:01:01]} 36. Bxh6 {[%clk 0:01:31]}  Kc7 {[%clk 0:00:45]} 37. Re1 {[%clk 0:01:21]}  Kd7 {[%clk 0:00:43]} 38. Rc1 {[%clk 0:01:20]}  Nb6 {[%clk 0:00:35]} 39. g3 {[%clk 0:01:17]}  Ke6 {[%clk 0:00:35]} 40. Kg2 {[%clk 0:01:17]}  Kd5 {[%clk 0:00:35]} 41. Bg7 {[%clk 0:01:17]}  f5 {[%clk 0:00:32]} 42. Re1 {[%clk 0:01:16]}  Kc4 {[%clk 0:00:29]} 43. Re6 {[%clk 0:01:15]}  Nd5 {[%clk 0:00:28]} 44. Rc6+ {[%clk 0:01:15]}  Kd3 {[%clk 0:00:28]} 45. Rc5 {[%clk 0:01:14]}  Nxc3 {[%clk 0:00:27]} 46. Rxf5 {[%clk 0:01:11]}  Rd8 {[%clk 0:00:21]} 47. Rc5 {[%clk 0:01:06]}  Rd7 {[%clk 0:00:20]} 48. Be5 {[%clk 0:01:03]}  Ne4 {[%clk 0:00:05]} 49. Rxb5 {[%clk 0:01:03]}  Ra7 {[%clk 0:00:05]} 50. Bf4 {[%clk 0:01:01]}  Ra2 {[%clk 0:00:03]} 51. Be3 {[%clk 0:01:01]}  Nc3 {[%clk 0:00:04]} 52. Re5 {[%clk 0:00:59]}  Nd1 {[%clk 0:00:02]} 53. d5 {[%clk 0:00:58]} 1-0


[Site "https://www.chess.com"]

[Event "Titled Tuesday Blitz November 01 Late 2022"]
[White "Potapova, Margarita"]
[Black "Wieczorek, Zbigniew"]
[WhiteFideId "14126869"]
[BlackFideId "1102001"]
[WhiteElo "2150"]
[BlackElo "2315"]
[Result "0-1"]
[Round "11"]
[TimeControl "180+1"]
[Date "2022.11.02"]
[WhiteClock "0:00:05"]
[BlackClock "0:00:07"]

1. d4 {[%clk 0:03:00]}  Nf6 {[%clk 0:02:54]} 2. Bf4 {[%clk 0:03:01]}  d5 {[%clk 0:02:48]} 3. e3 {[%clk 0:03:01]}  e6 {[%clk 0:02:48]} 4. Nf3 {[%clk 0:03:01]}  Bd6 {[%clk 0:02:48]} 5. Nc3 {[%clk 0:03:02]}  O-O {[%clk 0:02:43]} 6. Bd3 {[%clk 0:03:02]}  b6 {[%clk 0:02:39]} 7. O-O {[%clk 0:02:59]}  Ba6 {[%clk 0:02:37]} 8. Ne5 {[%clk 0:02:57]}  Bxd3 {[%clk 0:02:36]} 9. cxd3 {[%clk 0:02:58]}  Nfd7 {[%clk 0:02:29]} 10. Nb5 {[%clk 0:02:47]}  Bxe5 {[%clk 0:02:12]} 11. dxe5 {[%clk 0:02:45]}  a6 {[%clk 0:02:05]} 12. Nc3 {[%clk 0:02:44]}  c5 {[%clk 0:02:03]} 13. d4 {[%clk 0:02:44]}  Nc6 {[%clk 0:01:55]} 14. Rc1 {[%clk 0:02:37]}  Qe7 {[%clk 0:01:53]} 15. Qd2 {[%clk 0:02:33]}  Rfc8 {[%clk 0:01:45]} 16. Rfd1 {[%clk 0:02:22]}  b5 {[%clk 0:01:17]} 17. a3 {[%clk 0:01:58]}  Nb6 {[%clk 0:01:07]} 18. dxc5 {[%clk 0:01:54]}  Nc4 {[%clk 0:01:07]} 19. Qe2 {[%clk 0:01:48]}  N6xe5 {[%clk 0:00:50]} 20. b3 {[%clk 0:01:43]}  Qxc5 {[%clk 0:00:44]} 21. bxc4 {[%clk 0:01:44]}  Nxc4 {[%clk 0:00:44]} 22. Nb1 {[%clk 0:01:26]}  Qe7 {[%clk 0:00:39]} 23. e4 {[%clk 0:01:19]}  dxe4 {[%clk 0:00:32]} 24. Qxe4 {[%clk 0:01:19]}  Nxa3 {[%clk 0:00:24]} 25. Bd6 {[%clk 0:01:07]}  Qxd6 {[%clk 0:00:22]} 26. Qxa8 {[%clk 0:00:44]}  Qxd1+ {[%clk 0:00:21]} 27. Rxd1 {[%clk 0:00:45]}  Rxa8 {[%clk 0:00:21]} 28. Nxa3 {[%clk 0:00:45]}  g6 {[%clk 0:00:20]} 29. Ra1 {[%clk 0:00:40]}  Rb8 {[%clk 0:00:18]} 30. Kf1 {[%clk 0:00:39]}  Kf8 {[%clk 0:00:16]} 31. Ke2 {[%clk 0:00:40]}  Ke7 {[%clk 0:00:16]} 32. Kd3 {[%clk 0:00:40]}  e5 {[%clk 0:00:15]} 33. Kc2 {[%clk 0:00:40]}  f5 {[%clk 0:00:15]} 34. Kb3 {[%clk 0:00:40]}  a5 {[%clk 0:00:12]} 35. Rc1 {[%clk 0:00:38]}  Kd6 {[%clk 0:00:12]} 36. f3 {[%clk 0:00:33]}  g5 {[%clk 0:00:12]} 37. Nc2 {[%clk 0:00:30]}  Rc8 {[%clk 0:00:11]} 38. Rd1+ {[%clk 0:00:30]}  Ke6 {[%clk 0:00:11]} 39. Ne3 {[%clk 0:00:26]}  f4 {[%clk 0:00:10]} 40. Ng4 {[%clk 0:00:24]}  Rc4 {[%clk 0:00:09]} 41. Re1 {[%clk 0:00:19]}  a4+ {[%clk 0:00:10]} 42. Ka3 {[%clk 0:00:18]}  e4 {[%clk 0:00:08]} 43. fxe4 {[%clk 0:00:14]}  h5 {[%clk 0:00:08]} 44. Nf2 {[%clk 0:00:12]}  Ke5 {[%clk 0:00:07]} 45. Nd3+ {[%clk 0:00:10]}  Kd4 {[%clk 0:00:07]} 46. Nb4 {[%clk 0:00:10]}  Rc3+ {[%clk 0:00:07]} 47. Ka2 {[%clk 0:00:10]}  Ke5 {[%clk 0:00:05]} 48. Nd5 {[%clk 0:00:09]}  Rc2+ {[%clk 0:00:05]} 49. Ka3 {[%clk 0:00:09]}  Rxg2 {[%clk 0:00:06]} 50. Ne7 {[%clk 0:00:07]}  f3 {[%clk 0:00:06]} 51. Nc6+ {[%clk 0:00:06]}  Kd6 {[%clk 0:00:06]} 52. Nd4 {[%clk 0:00:05]}  f2 {[%clk 0:00:06]} 53. Rf1 {[%clk 0:00:06]}  Ke5 {[%clk 0:00:06]} 54. Ne2 {[%clk 0:00:03]}  Kxe4 {[%clk 0:00:06]} 55. Ng3+ {[%clk 0:00:04]}  Kf3 {[%clk 0:00:07]} 56. Rd1 {[%clk 0:00:04]}  Rxg3 {[%clk 0:00:06]} 57. hxg3 {[%clk 0:00:05]}  Ke2 {[%clk 0:00:07]} 58. Rb1 {[%clk 0:00:05]}  f1=Q {[%clk 0:00:07]} 0-1


[Site "https://www.chess.com"]